[Event "Early-Titled-Tuesday-Blitz-October-03-2023"]
[Site "Chess.com"]
[Date "2023.10.03"]
[Round "4"]
[White "amylazy"]
[Black "microbear"]
[Result "1-0"]
[WhiteElo "2375"]
[BlackElo "2191"]
[TimeControl "180+1"]
[EndTime "8:37:05 PDT"]
[Termination "amylazy won by resignation"]

1. d4 {[%clk 0:03:00.9]} 1... c5 {[%clk 0:03:00.4]} 2. d5 {[%clk 0:03:00.4]}
2... Nf6 {[%clk 0:02:58.6]} 3. Nc3 {[%clk 0:03:00.9]} 3... g6 {[%clk 0:02:58.3]}
4. e4 {[%clk 0:02:59.9]} 4... d6 {[%clk 0:02:58.8]} 5. Bb5+ {[%clk 0:02:59.3]}
5... Bd7 {[%clk 0:02:58.6]} 6. a4 {[%clk 0:03:00.2]} 6... Bg7 {[%clk 0:02:58.5]}
7. Nf3 {[%clk 0:03:00.4]} 7... a6 {[%clk 0:02:58.7]} 8. Be2 {[%clk 0:02:59.2]}
8... O-O {[%clk 0:02:57.9]} 9. O-O {[%clk 0:03:00.1]} 9... e6 {[%clk 0:02:58.4]}
10. dxe6 {[%clk 0:02:59.4]} 10... Bxe6 {[%clk 0:02:57.5]} 11. Ng5 {[%clk
0:03:00.1]} 11... Nc6 {[%clk 0:02:56.4]} 12. Nxe6 {[%clk 0:03:00.1]} 12... fxe6
{[%clk 0:02:57.3]} 13. Bc4 {[%clk 0:02:59.8]} 13... Qe7 {[%clk 0:02:48.1]} 14.
Be3 {[%clk 0:02:57.5]} 14... Kh8 {[%clk 0:02:36.9]} 15. Qd2 {[%clk 0:02:50.5]}
15... Nd4 {[%clk 0:02:01.1]} 16. Bxd4 {[%clk 0:02:49.8]} 16... cxd4 {[%clk
0:02:00.9]} 17. Qxd4 {[%clk 0:02:50.7]} 17... Nd5 {[%clk 0:01:53.6]} 18. Nxd5
{[%clk 0:02:48.6]} 18... exd5 {[%clk 0:01:42.3]} 19. Qxd5 {[%clk 0:02:49.5]}
19... Rac8 {[%clk 0:01:38.7]} 20. c3 {[%clk 0:02:44.7]} 20... Be5 {[%clk
0:01:03.9]} 21. h3 {[%clk 0:02:41.7]} 21... Qg5 {[%clk 0:00:57.1]} 22. Rad1
{[%clk 0:02:38.7]} 22... Qf4 {[%clk 0:00:47.3]} 23. g3 {[%clk 0:02:38.8]} 23...
Qh6 {[%clk 0:00:47.6]} 24. Kg2 {[%clk 0:02:38.6]} 24... Qh5 {[%clk 0:00:44.1]}
25. f4 {[%clk 0:02:38.6]} 25... Rc5 {[%clk 0:00:41.7]} 26. Qxb7 {[%clk
0:02:36.2]} 26... Rxc4 {[%clk 0:00:26.7]} 27. g4 {[%clk 0:02:36.2]} 27... Qh4
{[%clk 0:00:18]} 28. fxe5 {[%clk 0:02:35.6]} 28... Qh6 {[%clk 0:00:11.7]} 29.
Rxf8+ {[%clk 0:02:33.1]} 29... Qxf8 {[%clk 0:00:12.6]} 30. Rf1 {[%clk
0:02:32.9]} 1-0

[Event "Early-Titled-Tuesday-Blitz-October-03-2023"]
[Site "Chess.com"]
[Date "2023.10.03"]
[Round "4"]
[White "Fore_Man"]
[Black "Alenzer"]
[Result "1-0"]
[WhiteElo "2262"]
[BlackElo "2095"]
[TimeControl "180+1"]
[EndTime "8:37:15 PDT"]
[Termination "Fore_Man won by checkmate"]

1. Nf3 {[%clk 0:03:00.9]} 1... d5 {[%clk 0:02:57.6]} 2. c4 {[%clk 0:03:01.3]}
2... e6 {[%clk 0:02:55.9]} 3. d4 {[%clk 0:03:01.5]} 3... Nf6 {[%clk 0:02:55.7]}
4. Bg5 {[%clk 0:02:58.6]} 4... Nbd7 {[%clk 0:02:49.8]} 5. Nc3 {[%clk 0:02:56.9]}
5... c6 {[%clk 0:02:49.7]} 6. e4 {[%clk 0:02:57.1]} 6... dxe4 {[%clk 0:02:49.3]}
7. Nxe4 {[%clk 0:02:58]} 7... Be7 {[%clk 0:02:49.7]} 8. Nxf6+ {[%clk 0:02:56.6]}
8... Nxf6 {[%clk 0:02:49.3]} 9. Be2 {[%clk 0:02:56.3]} 9... O-O {[%clk 0:02:49]}
10. O-O {[%clk 0:02:56]} 10... Ne4 {[%clk 0:02:46]} 11. Bxe7 {[%clk 0:02:55.4]}
11... Qxe7 {[%clk 0:02:46.3]} 12. Bd3 {[%clk 0:02:56.3]} 12... Ng5 {[%clk
0:02:36.6]} 13. Ne5 {[%clk 0:02:52.7]} 13... f5 {[%clk 0:02:33.3]} 14. Qh5
{[%clk 0:02:48]} 14... Nf7 {[%clk 0:02:29.2]} 15. Nxf7 {[%clk 0:02:45.5]} 15...
Qxf7 {[%clk 0:02:28.8]} 16. Qxf7+ {[%clk 0:02:45.5]} 16... Kxf7 {[%clk
0:02:25.2]} 17. Rfe1 {[%clk 0:02:46.4]} 17... Kf6 {[%clk 0:02:23.8]} 18. Rad1
{[%clk 0:02:35.5]} 18... b6 {[%clk 0:02:13.8]} 19. f4 {[%clk 0:02:33.3]} 19...
Bb7 {[%clk 0:02:10.2]} 20. c5 {[%clk 0:02:33.2]} 20... Rad8 {[%clk 0:02:07.9]}
21. Bc4 {[%clk 0:02:32.3]} 21... Rfe8 {[%clk 0:02:05.4]} 22. Re5 {[%clk
0:02:32.1]} 22... b5 {[%clk 0:01:57.3]} 23. Bb3 {[%clk 0:02:30.2]} 23... a5
{[%clk 0:01:55.2]} 24. a4 {[%clk 0:02:26.8]} 24... Ba6 {[%clk 0:01:40.8]} 25.
Rde1 {[%clk 0:02:25.1]} 25... Bc8 {[%clk 0:01:26.6]} 26. d5 {[%clk 0:02:25.1]}
26... cxd5 {[%clk 0:01:23.8]} 27. Bxd5 {[%clk 0:02:25.2]} 27... bxa4 {[%clk
0:01:16.9]} 28. Bc6 {[%clk 0:02:25]} 28... Re7 {[%clk 0:01:16.9]} 29. Bxa4
{[%clk 0:02:25.2]} 29... Rd2 {[%clk 0:01:14]} 30. R1e2 {[%clk 0:02:23.8]} 30...
Rd4 {[%clk 0:01:08.9]} 31. Bb3 {[%clk 0:02:11.8]} 31... Rxf4 {[%clk 0:01:06.8]}
32. c6 {[%clk 0:02:12.4]} 32... Ba6 {[%clk 0:01:05.6]} 33. Rxe6+ {[%clk
0:02:08.8]} 33... Rxe6 {[%clk 0:01:05.7]} 34. Rxe6+ {[%clk 0:02:09.7]} 34... Kg5
{[%clk 0:01:05.4]} 35. g3 {[%clk 0:02:00.7]} 35... Rb4 {[%clk 0:00:58.8]} 36.
Bd1 {[%clk 0:01:56.1]} 36... Rxb2 {[%clk 0:00:56.5]} 37. h4# {[%clk 0:01:56.3]}
1-0

[Event "Early-Titled-Tuesday-Blitz-October-03-2023"]
[Site "Chess.com"]
[Date "2023.10.03"]
[Round "4"]
[White "swayamsm"]
[Black "Alexandr_Predke"]
[Result "0-1"]
[WhiteElo "2581"]
[BlackElo "2861"]
[TimeControl "180+1"]
[EndTime "8:37:16 PDT"]
[Termination "Alexandr_Predke won by resignation"]

1. d4 {[%clk 0:02:59.8]} 1... Nf6 {[%clk 0:02:53.8]} 2. c4 {[%clk 0:02:53.2]}
2... e6 {[%clk 0:02:53.9]} 3. Nc3 {[%clk 0:02:48.8]} 3... Bb4 {[%clk 0:02:53]}
4. f3 {[%clk 0:01:37.9]} 4... d5 {[%clk 0:02:45.1]} 5. a3 {[%clk 0:01:31.7]}
5... Bd6 {[%clk 0:02:45.2]} 6. e4 {[%clk 0:01:28.5]} 6... c5 {[%clk 0:02:45.3]}
7. cxd5 {[%clk 0:01:21.9]} 7... exd5 {[%clk 0:02:42.3]} 8. e5 {[%clk 0:01:18.7]}
8... cxd4 {[%clk 0:02:42.2]} 9. Qxd4 {[%clk 0:01:18.9]} 9... Nc6 {[%clk
0:02:42]} 10. Bb5 {[%clk 0:01:18.7]} 10... Qe7 {[%clk 0:02:35.3]} 11. f4 {[%clk
0:00:57.1]} 11... Bc5 {[%clk 0:02:29.7]} 12. Qa4 {[%clk 0:00:35.8]} 12... O-O
{[%clk 0:02:20.7]} 13. Nge2 {[%clk 0:00:29.6]} 13... Ng4 {[%clk 0:02:19.5]} 14.
Nxd5 {[%clk 0:00:27.2]} 14... Qh4+ {[%clk 0:02:07.3]} 15. g3 {[%clk 0:00:16.6]}
15... Qh3 {[%clk 0:02:07.2]} 16. Qe4 {[%clk 0:00:12.3]} 16... Nf2 {[%clk
0:02:01.1]} 17. Qf3 {[%clk 0:00:09.9]} 17... Bg4 {[%clk 0:01:57.3]} 0-1

[Event "Early-Titled-Tuesday-Blitz-October-03-2023"]
[Site "Chess.com"]
[Date "2023.10.03"]
[Round "4"]
[White "NovozhilovSemen"]
[Black "igorkovalenko"]
[Result "0-1"]
[WhiteElo "2585"]
[BlackElo "2862"]
[TimeControl "180+1"]
[EndTime "8:37:23 PDT"]
[Termination "igorkovalenko won by resignation"]

1. d4 {[%clk 0:03:00.9]} 1... Nf6 {[%clk 0:03:00]} 2. Nf3 {[%clk 0:03:01]} 2...
g6 {[%clk 0:02:59.6]} 3. Nc3 {[%clk 0:03:01]} 3... Bg7 {[%clk 0:03:00.5]} 4. e4
{[%clk 0:03:00.6]} 4... d6 {[%clk 0:03:01.4]} 5. Be3 {[%clk 0:03:00.7]} 5... Ng4
{[%clk 0:03:00.7]} 6. Bg5 {[%clk 0:03:00.6]} 6... h6 {[%clk 0:03:00.9]} 7. h3
{[%clk 0:02:58.5]} 7... hxg5 {[%clk 0:02:59.9]} 8. Nxg5 {[%clk 0:02:51.1]} 8...
e5 {[%clk 0:02:55.6]} 9. Nf3 {[%clk 0:02:46.5]} 9... exd4 {[%clk 0:02:53.6]} 10.
Nxd4 {[%clk 0:02:47.4]} 10... Ne5 {[%clk 0:02:53.4]} 11. Be2 {[%clk 0:02:45.6]}
11... Nbc6 {[%clk 0:02:52.3]} 12. Nb3 {[%clk 0:02:45.3]} 12... Be6 {[%clk
0:02:51.7]} 13. O-O {[%clk 0:02:44]} 13... Bxh3 {[%clk 0:02:44.7]} 14. f4 {[%clk
0:02:35.4]} 14... Qh4 {[%clk 0:02:39.3]} 15. Qe1 {[%clk 0:02:13.4]} 15... Qxe1
{[%clk 0:02:27]} 16. Raxe1 {[%clk 0:02:14.3]} 16... Be6 {[%clk 0:02:21.7]} 17.
fxe5 {[%clk 0:02:12.6]} 17... Bxe5 {[%clk 0:02:22.6]} 18. Nd5 {[%clk 0:02:09.8]}
18... O-O-O {[%clk 0:02:19.5]} 19. c3 {[%clk 0:01:57.6]} 19... Rh4 {[%clk
0:02:18.6]} 20. Bd3 {[%clk 0:01:50]} 20... Rdh8 {[%clk 0:02:05.6]} 21. Re3
{[%clk 0:01:41]} 21... f5 {[%clk 0:01:50]} 22. Nd2 {[%clk 0:01:22.9]} 22... f4
{[%clk 0:01:29.9]} 23. Ree1 {[%clk 0:01:17.3]} 23... g5 {[%clk 0:01:28.3]} 24.
Nf3 {[%clk 0:01:15]} 24... R4h5 {[%clk 0:01:28.5]} 25. Bb5 {[%clk 0:01:03.8]}
25... g4 {[%clk 0:01:28.3]} 26. Nxe5 {[%clk 0:01:03.4]} 26... g3 {[%clk
0:01:27.2]} 0-1

[Event "Early-Titled-Tuesday-Blitz-October-03-2023"]
[Site "Chess.com"]
[Date "2023.10.03"]
[Round "4"]
[White "Martial2008"]
[Black "Zhigalko_Sergei"]
[Result "0-1"]
[WhiteElo "2597"]
[BlackElo "2931"]
[TimeControl "180+1"]
[EndTime "8:37:26 PDT"]
[Termination "Zhigalko_Sergei won by resignation"]

1. e4 {[%clk 0:02:55.3]} 1... c5 {[%clk 0:03:00.3]} 2. Nf3 {[%clk 0:02:53]} 2...
Nc6 {[%clk 0:03:01]} 3. d4 {[%clk 0:02:51.3]} 3... cxd4 {[%clk 0:03:00.9]} 4.
Nxd4 {[%clk 0:02:52.2]} 4... Nf6 {[%clk 0:03:00.7]} 5. Nc3 {[%clk 0:02:52.2]}
5... e5 {[%clk 0:03:00.8]} 6. Ndb5 {[%clk 0:02:52.1]} 6... d6 {[%clk 0:03:01]}
7. Bg5 {[%clk 0:02:51.4]} 7... a6 {[%clk 0:03:01]} 8. Na3 {[%clk 0:02:50.9]}
8... b5 {[%clk 0:03:01.7]} 9. Nd5 {[%clk 0:02:50.7]} 9... Be7 {[%clk 0:03:02]}
10. Bxf6 {[%clk 0:02:49.2]} 10... Bxf6 {[%clk 0:03:02.9]} 11. c3 {[%clk
0:02:49.5]} 11... Bg5 {[%clk 0:03:03.3]} 12. Nc2 {[%clk 0:02:49]} 12... Ne7
{[%clk 0:03:03.6]} 13. Ncb4 {[%clk 0:02:43.2]} 13... O-O {[%clk 0:03:03.4]} 14.
h4 {[%clk 0:02:41.2]} 14... Bh6 {[%clk 0:03:03.5]} 15. Nxe7+ {[%clk 0:02:41.4]}
15... Qxe7 {[%clk 0:03:04.4]} 16. Nd5 {[%clk 0:02:41.5]} 16... Qb7 {[%clk
0:03:04.6]} 17. Be2 {[%clk 0:02:39.8]} 17... Be6 {[%clk 0:03:04.4]} 18. O-O
{[%clk 0:02:37.1]} 18... f5 {[%clk 0:02:40]} 19. Bf3 {[%clk 0:02:36.4]} 19...
Bxd5 {[%clk 0:02:38.4]} 20. Qxd5+ {[%clk 0:02:35.8]} 20... Qxd5 {[%clk
0:02:38.4]} 21. exd5 {[%clk 0:02:36.7]} 21... Rab8 {[%clk 0:02:25.7]} 22. Be2
{[%clk 0:02:34.7]} 22... a5 {[%clk 0:02:22.6]} 23. a3 {[%clk 0:02:29]} 23... e4
{[%clk 0:02:10]} 24. f4 {[%clk 0:02:21.1]} 24... g6 {[%clk 0:01:56.7]} 25. g3
{[%clk 0:02:20.3]} 25... Bg7 {[%clk 0:01:54.2]} 26. Rfc1 {[%clk 0:02:18.8]}
26... Rfc8 {[%clk 0:01:49]} 27. Kf2 {[%clk 0:01:45.3]} 27... Rc5 {[%clk
0:01:40.6]} 28. Rd1 {[%clk 0:01:42.9]} 28... b4 {[%clk 0:01:19.4]} 29. cxb4
{[%clk 0:01:34.2]} 29... axb4 {[%clk 0:01:18.9]} 30. axb4 {[%clk 0:01:29.5]}
30... Rc2 {[%clk 0:01:06.2]} 31. Rdc1 {[%clk 0:01:23.9]} 31... Rxb2 {[%clk
0:00:59.8]} 32. Ra7 {[%clk 0:01:23.7]} 32... Bd4+ {[%clk 0:00:59.2]} 0-1

[Event "Early-Titled-Tuesday-Blitz-October-03-2023"]
[Site "Chess.com"]
[Date "2023.10.03"]
[Round "4"]
[White "Grischuk"]
[Black "twofoxniel"]
[Result "1-0"]
[WhiteElo "2998"]
[BlackElo "2605"]
[TimeControl "180+1"]
[EndTime "8:37:29 PDT"]
[Termination "Grischuk won by resignation"]

1. Nf3 {[%clk 0:02:57.5]} 1... d5 {[%clk 0:02:51.8]} 2. d4 {[%clk 0:02:57.9]}
2... c6 {[%clk 0:02:51]} 3. Bg5 {[%clk 0:02:56.6]} 3... Nf6 {[%clk 0:02:51.9]}
4. e3 {[%clk 0:02:56.5]} 4... Ne4 {[%clk 0:02:50.7]} 5. Bh4 {[%clk 0:02:56.7]}
5... Bf5 {[%clk 0:02:51.1]} 6. c4 {[%clk 0:02:55.3]} 6... Qb6 {[%clk 0:02:47.9]}
7. Qc1 {[%clk 0:02:55.7]} 7... e6 {[%clk 0:02:46.8]} 8. Nbd2 {[%clk 0:02:52.4]}
8... Nd7 {[%clk 0:02:46.9]} 9. Be2 {[%clk 0:02:51.6]} 9... Be7 {[%clk 0:02:35]}
10. Bxe7 {[%clk 0:02:50.8]} 10... Kxe7 {[%clk 0:02:35.9]} 11. O-O {[%clk
0:02:49.8]} 11... Rhe8 {[%clk 0:02:34.9]} 12. Nxe4 {[%clk 0:02:49.9]} 12... Bxe4
{[%clk 0:02:34.9]} 13. Nd2 {[%clk 0:02:50.7]} 13... Bg6 {[%clk 0:02:35.1]} 14.
Qc3 {[%clk 0:02:49.2]} 14... Kf8 {[%clk 0:02:35.1]} 15. b4 {[%clk 0:02:47.1]}
15... Kg8 {[%clk 0:02:33.6]} 16. Nb3 {[%clk 0:02:40.5]} 16... dxc4 {[%clk
0:02:22]} 17. Bxc4 {[%clk 0:02:41.4]} 17... e5 {[%clk 0:02:22.3]} 18. Rfd1
{[%clk 0:02:38.7]} 18... exd4 {[%clk 0:02:21.8]} 19. Rxd4 {[%clk 0:02:38.2]}
19... Ne5 {[%clk 0:02:22.2]} 20. Be2 {[%clk 0:02:38.3]} 20... h6 {[%clk
0:02:15.4]} 21. Rad1 {[%clk 0:02:37.6]} 21... Re7 {[%clk 0:02:12.1]} 22. a4
{[%clk 0:02:31]} 22... Bf5 {[%clk 0:02:00.2]} 23. h3 {[%clk 0:02:27.7]} 23...
Rae8 {[%clk 0:01:57.8]} 24. Nc5 {[%clk 0:02:26.4]} 24... Bc8 {[%clk 0:01:45.5]}
25. Ne4 {[%clk 0:02:14.2]} 25... Rf8 {[%clk 0:01:24.4]} 26. Nd6 {[%clk
0:02:09.7]} 26... Qc7 {[%clk 0:01:21.1]} 27. f4 {[%clk 0:02:04.1]} 27... Ng6
{[%clk 0:01:19.6]} 28. Bh5 {[%clk 0:02:02.5]} 28... Nh4 {[%clk 0:01:18.1]} 29.
e4 {[%clk 0:02:00.1]} 29... Be6 {[%clk 0:00:52.4]} 30. Qg3 {[%clk 0:01:53.7]}
30... Ng6 {[%clk 0:00:45]} 31. f5 {[%clk 0:01:51.9]} 1-0

[Event "Early-Titled-Tuesday-Blitz-October-03-2023"]
[Site "Chess.com"]
[Date "2023.10.03"]
[Round "4"]
[White "Darko-Dimitrijevic"]
[Black "Zavgorodniy_Sergiy"]
[Result "0-1"]
[WhiteElo "2200"]
[BlackElo "2610"]
[TimeControl "180+1"]
[EndTime "8:37:47 PDT"]
[Termination "Zavgorodniy_Sergiy won by resignation"]

1. c4 {[%clk 0:03:00.9]} 1... Nf6 {[%clk 0:02:55.8]} 2. g3 {[%clk 0:03:00.1]}
2... e5 {[%clk 0:02:53.3]} 3. Bg2 {[%clk 0:02:59.4]} 3... c6 {[%clk 0:02:52.7]}
4. Nc3 {[%clk 0:02:59]} 4... d5 {[%clk 0:02:50.8]} 5. cxd5 {[%clk 0:02:56.5]}
5... cxd5 {[%clk 0:02:51.7]} 6. Qb3 {[%clk 0:02:52.4]} 6... Nc6 {[%clk
0:02:47.2]} 7. Nxd5 {[%clk 0:02:51.1]} 7... Nd4 {[%clk 0:02:26.9]} 8. Nxf6+
{[%clk 0:02:37.2]} 8... Qxf6 {[%clk 0:02:27.8]} 9. Qd1 {[%clk 0:02:36.5]} 9...
Bf5 {[%clk 0:02:23.3]} 10. e4 {[%clk 0:02:10.9]} 10... Qc6 {[%clk 0:02:22.9]}
11. Kf1 {[%clk 0:01:58.3]} 11... Bxe4 {[%clk 0:02:16.7]} 12. Bxe4 {[%clk
0:01:49.2]} 12... Qxe4 {[%clk 0:02:17.6]} 13. f3 {[%clk 0:01:44.7]} 13... Qd3+
{[%clk 0:02:17.5]} 14. Kg2 {[%clk 0:01:44.4]} 14... Rc8 {[%clk 0:02:01.5]} 15.
b3 {[%clk 0:01:43.5]} 15... Rc2 {[%clk 0:01:56.6]} 16. Nh3 {[%clk 0:01:38.9]}
16... Bd6 {[%clk 0:01:38.4]} 17. Nf2 {[%clk 0:01:38.2]} 17... Qg6 {[%clk
0:01:37.8]} 18. Re1 {[%clk 0:01:36]} 18... O-O {[%clk 0:01:37.3]} 19. d3 {[%clk
0:01:35]} 19... Rfc8 {[%clk 0:01:14.9]} 20. Bd2 {[%clk 0:01:34.7]} 20... f5
{[%clk 0:01:09.9]} 21. b4 {[%clk 0:01:14.8]} 21... h6 {[%clk 0:01:05]} 22. a4
{[%clk 0:01:14.5]} 22... Qf7 {[%clk 0:01:04.5]} 23. b5 {[%clk 0:01:11.3]} 23...
Qd5 {[%clk 0:01:04.4]} 24. Rb1 {[%clk 0:01:01.2]} 24... Rxd2 {[%clk 0:01:01]}
25. Qxd2 {[%clk 0:01:00.6]} 25... Nxf3 {[%clk 0:01:01.5]} 0-1

[Event "Early-Titled-Tuesday-Blitz-October-03-2023"]
[Site "Chess.com"]
[Date "2023.10.03"]
[Round "4"]
[White "ChessRespected"]
[Black "MatyChess1"]
[Result "0-1"]
[WhiteElo "2526"]
[BlackElo "2738"]
[TimeControl "180+1"]
[EndTime "8:37:48 PDT"]
[Termination "MatyChess1 won by resignation"]

1. d4 {[%clk 0:03:00.9]} 1... c6 {[%clk 0:03:00.9]} 2. e4 {[%clk 0:02:58.9]}
2... d5 {[%clk 0:03:01.8]} 3. Nd2 {[%clk 0:02:58.6]} 3... dxe4 {[%clk
0:03:01.8]} 4. Nxe4 {[%clk 0:02:59.5]} 4... Nf6 {[%clk 0:03:02.6]} 5. Nxf6+
{[%clk 0:02:59.3]} 5... exf6 {[%clk 0:03:03.5]} 6. c3 {[%clk 0:02:59.4]} 6...
Bd6 {[%clk 0:03:04]} 7. Bd3 {[%clk 0:02:59.6]} 7... O-O {[%clk 0:03:04.9]} 8.
Qc2 {[%clk 0:02:59.8]} 8... Re8+ {[%clk 0:03:05.5]} 9. Ne2 {[%clk 0:03:00.3]}
9... h5 {[%clk 0:03:06.2]} 10. O-O {[%clk 0:03:00.9]} 10... Nd7 {[%clk 0:03:04]}
11. Ng3 {[%clk 0:02:55.6]} 11... Qc7 {[%clk 0:02:32]} 12. Nxh5 {[%clk
0:02:55.4]} 12... Bxh2+ {[%clk 0:02:31]} 13. Kh1 {[%clk 0:02:55.7]} 13... Bd6
{[%clk 0:02:29.3]} 14. Bh6 {[%clk 0:02:56.2]} 14... gxh6 {[%clk 0:01:59.3]} 15.
Bc4 {[%clk 0:02:55.2]} 15... Kf8 {[%clk 0:01:29]} 16. Qh7 {[%clk 0:02:53.4]}
16... Nb6 {[%clk 0:01:19]} 17. Rae1 {[%clk 0:02:47.1]} 17... Be6 {[%clk
0:01:13.7]} 18. Qg7+ {[%clk 0:01:55.9]} 18... Ke7 {[%clk 0:01:12.8]} 19. Bb3
{[%clk 0:01:47.7]} 19... Kd8 {[%clk 0:00:32.1]} 20. Bxe6 {[%clk 0:01:23.6]}
20... fxe6 {[%clk 0:00:28.4]} 21. Qxf6+ {[%clk 0:01:21.2]} 21... Qe7 {[%clk
0:00:27.2]} 22. Qxh6 {[%clk 0:01:20]} 22... Qh4+ {[%clk 0:00:19]} 0-1

[Event "Early-Titled-Tuesday-Blitz-October-03-2023"]
[Site "Chess.com"]
[Date "2023.10.03"]
[Round "4"]
[White "NMJeevanK"]
[Black "RobertoJBM"]
[Result "0-1"]
[WhiteElo "2522"]
[BlackElo "2806"]
[TimeControl "180+1"]
[EndTime "8:38:08 PDT"]
[Termination "RobertoJBM won by resignation"]

1. e4 {[%clk 0:03:00.9]} 1... c6 {[%clk 0:03:00]} 2. d4 {[%clk 0:02:58.3]} 2...
d5 {[%clk 0:03:00.9]} 3. exd5 {[%clk 0:02:58.2]} 3... cxd5 {[%clk 0:03:01]} 4.
Bd3 {[%clk 0:02:58.9]} 4... Nc6 {[%clk 0:03:00.9]} 5. c3 {[%clk 0:02:58.6]} 5...
g6 {[%clk 0:03:00.9]} 6. Nf3 {[%clk 0:02:53.7]} 6... Bf5 {[%clk 0:03:00.9]} 7.
O-O {[%clk 0:02:53.2]} 7... Bxd3 {[%clk 0:03:00]} 8. Qxd3 {[%clk 0:02:53.3]}
8... Nf6 {[%clk 0:03:00.7]} 9. Nbd2 {[%clk 0:02:52.1]} 9... Bg7 {[%clk
0:03:01.2]} 10. Re1 {[%clk 0:02:51.4]} 10... O-O {[%clk 0:03:01.8]} 11. Ne5
{[%clk 0:02:51.3]} 11... Nxe5 {[%clk 0:02:58.7]} 12. dxe5 {[%clk 0:02:51.5]}
12... Ne8 {[%clk 0:02:58.6]} 13. e6 {[%clk 0:02:49.5]} 13... fxe6 {[%clk
0:02:57.7]} 14. Rxe6 {[%clk 0:02:48.3]} 14... Nc7 {[%clk 0:02:58.2]} 15. Re1
{[%clk 0:02:46.1]} 15... e5 {[%clk 0:02:58.7]} 16. Nb3 {[%clk 0:02:42]} 16...
Qd6 {[%clk 0:02:54.7]} 17. Be3 {[%clk 0:02:38.9]} 17... b6 {[%clk 0:02:54.2]}
18. Rad1 {[%clk 0:02:38.7]} 18... Rad8 {[%clk 0:02:53.5]} 19. Bg5 {[%clk
0:02:33.3]} 19... Rd7 {[%clk 0:02:52.5]} 20. Qh3 {[%clk 0:02:33]} 20... Rdf7
{[%clk 0:02:49.8]} 21. Bh4 {[%clk 0:02:31.7]} 21... Qc6 {[%clk 0:02:22.3]} 22.
Bg3 {[%clk 0:02:29.4]} 22... Rf5 {[%clk 0:02:20.1]} 23. Qh4 {[%clk 0:02:19.9]}
23... h5 {[%clk 0:02:13.1]} 24. Qe7 {[%clk 0:02:11.7]} 24... R8f7 {[%clk
0:02:11.4]} 25. Qd8+ {[%clk 0:02:06.2]} 25... Kh7 {[%clk 0:02:11.2]} 26. Qh4
{[%clk 0:01:42.9]} 26... a5 {[%clk 0:02:06.1]} 27. Nc1 {[%clk 0:01:40.3]} 27...
Ne6 {[%clk 0:01:59.7]} 28. Nd3 {[%clk 0:01:39.4]} 28... e4 {[%clk 0:01:58.5]}
29. Nc1 {[%clk 0:01:37]} 29... Bf6 {[%clk 0:01:55.4]} 30. Qh3 {[%clk 0:01:23.3]}
30... Ng5 {[%clk 0:01:54.2]} 31. Qxf5 {[%clk 0:01:19.8]} 31... gxf5 {[%clk
0:01:52.9]} 32. Ne2 {[%clk 0:01:20.7]} 32... Ne6 {[%clk 0:01:47.5]} 33. Nf4
{[%clk 0:01:17.1]} 33... Nxf4 {[%clk 0:01:40.4]} 34. Bxf4 {[%clk 0:01:18]} 34...
Rd7 {[%clk 0:01:36.2]} 35. Re2 {[%clk 0:01:11.9]} 35... Kg6 {[%clk 0:01:35.4]}
36. g3 {[%clk 0:01:10.5]} 36... Bg5 {[%clk 0:01:34.7]} 37. Be5 {[%clk
0:01:10.1]} 37... Bf6 {[%clk 0:01:33.3]} 38. Bf4 {[%clk 0:01:10.2]} 38... b5
{[%clk 0:01:31.8]} 39. h4 {[%clk 0:01:05.9]} 39... Kf7 {[%clk 0:01:30.6]} 40.
Red2 {[%clk 0:01:05.7]} 40... Ke6 {[%clk 0:01:30.2]} 41. Kg2 {[%clk 0:01:05.2]}
41... Be5 {[%clk 0:01:29.1]} 42. Be3 {[%clk 0:01:01]} 42... Qc4 {[%clk
0:01:28.1]} 43. a3 {[%clk 0:00:55.2]} 43... Qc7 {[%clk 0:01:20.9]} 44. Bd4
{[%clk 0:00:54.5]} 44... Bxd4 {[%clk 0:01:17.9]} 45. Rxd4 {[%clk 0:00:55.4]}
45... f4 {[%clk 0:01:17.5]} 0-1

[Event "Early-Titled-Tuesday-Blitz-October-03-2023"]
[Site "Chess.com"]
[Date "2023.10.03"]
[Round "4"]
[White "mmDarko"]
[Black "Better_Chess_Faster"]
[Result "1-0"]
[WhiteElo "2298"]
[BlackElo "2015"]
[TimeControl "180+1"]
[EndTime "8:38:08 PDT"]
[Termination "mmDarko won by resignation"]

1. d4 {[%clk 0:03:00.9]} 1... f5 {[%clk 0:02:58.8]} 2. Nf3 {[%clk 0:03:01]} 2...
Nf6 {[%clk 0:02:59.3]} 3. g3 {[%clk 0:03:01.9]} 3... e6 {[%clk 0:02:57.3]} 4.
Bg2 {[%clk 0:03:02.8]} 4... d5 {[%clk 0:02:57.5]} 5. O-O {[%clk 0:03:03.7]} 5...
Bd6 {[%clk 0:02:57.6]} 6. b3 {[%clk 0:03:02.6]} 6... O-O {[%clk 0:02:57.2]} 7.
Ba3 {[%clk 0:02:59.6]} 7... b6 {[%clk 0:02:57.4]} 8. Bxd6 {[%clk 0:02:59.6]}
8... cxd6 {[%clk 0:02:55.4]} 9. c4 {[%clk 0:02:59.1]} 9... Bb7 {[%clk
0:02:53.7]} 10. Nbd2 {[%clk 0:02:45.2]} 10... dxc4 {[%clk 0:02:51.6]} 11. bxc4
{[%clk 0:02:31.2]} 11... Nbd7 {[%clk 0:02:49.8]} 12. Ng5 {[%clk 0:01:44.4]}
12... Qe7 {[%clk 0:02:47.1]} 13. Bxb7 {[%clk 0:01:42.7]} 13... Rab8 {[%clk
0:02:35.3]} 14. Bg2 {[%clk 0:01:25.3]} 14... h6 {[%clk 0:02:34.7]} 15. Ngf3
{[%clk 0:01:24.6]} 15... e5 {[%clk 0:02:32.5]} 16. dxe5 {[%clk 0:01:20.6]} 16...
dxe5 {[%clk 0:02:33.4]} 17. Nb3 {[%clk 0:01:09.6]} 17... f4 {[%clk 0:02:26.9]}
18. Rc1 {[%clk 0:01:03.2]} 18... e4 {[%clk 0:02:24.2]} 19. Nfd4 {[%clk
0:00:58.6]} 19... e3 {[%clk 0:02:18.5]} 20. Nc6 {[%clk 0:00:50.5]} 20... exf2+
{[%clk 0:02:18.4]} 21. Rxf2 {[%clk 0:00:49.4]} 21... Qe3 {[%clk 0:02:14.5]} 22.
Qd3 {[%clk 0:00:19.8]} 22... Rbe8 {[%clk 0:02:09.1]} 23. Qxe3 {[%clk 0:00:16.7]}
23... fxe3 {[%clk 0:02:08.6]} 24. Rff1 {[%clk 0:00:15.9]} 24... Re6 {[%clk
0:01:55.6]} 25. Nxa7 {[%clk 0:00:15]} 25... Ra8 {[%clk 0:01:49.6]} 26. Bxa8
{[%clk 0:00:14.2]} 26... Ng4 {[%clk 0:01:46]} 27. Bd5 {[%clk 0:00:12.6]} 27...
Kh7 {[%clk 0:01:45.4]} 28. Bxe6 {[%clk 0:00:12.5]} 28... Ndf6 {[%clk 0:01:46]}
29. Bxg4 {[%clk 0:00:12.5]} 29... Nxg4 {[%clk 0:01:45.9]} 30. Nc8 {[%clk
0:00:12]} 30... Nf2 {[%clk 0:01:45.9]} 31. Rxf2 {[%clk 0:00:11.8]} 31... exf2+
{[%clk 0:01:46.8]} 32. Kxf2 {[%clk 0:00:12.7]} 32... g5 {[%clk 0:01:46.4]} 33.
Nxb6 {[%clk 0:00:12.8]} 33... Kg6 {[%clk 0:01:47.3]} 34. c5 {[%clk 0:00:12.2]}
34... Kf6 {[%clk 0:01:48.2]} 35. c6 {[%clk 0:00:12.4]} 35... Ke7 {[%clk
0:01:49.1]} 36. c7 {[%clk 0:00:12.4]} 36... Kd6 {[%clk 0:01:47.9]} 37. c8=Q
{[%clk 0:00:09.9]} 1-0